[Event "Late-Titled-Tuesday-Blitz-November-28-2023"]
[Site "Chess.com"]
[Date "2023.11.28"]
[Round "8"]
[White "HajiyevKanan"]
[Black "DamianoLew95"]
[Result "0-1"]
[WhiteElo "2490"]
[BlackElo "2731"]
[TimeControl "180+1"]
[EndTime "15:26:44 PST"]
[Termination "DamianoLew95 won on time"]

1. d4 {[%clk 0:02:59.8]} 1... d5 {[%clk 0:02:59.3]} 2. Nf3 {[%clk 0:02:59.2]}
2... c6 {[%clk 0:02:59.9]} 3. c4 {[%clk 0:03:00.1]} 3... Nf6 {[%clk 0:03:00.3]}
4. cxd5 {[%clk 0:03:01]} 4... cxd5 {[%clk 0:03:00.7]} 5. Nc3 {[%clk 0:03:01.3]}
5... Nc6 {[%clk 0:03:01.3]} 6. Bg5 {[%clk 0:03:02]} 6... a6 {[%clk 0:02:58.8]}
7. Bxf6 {[%clk 0:03:01.9]} 7... gxf6 {[%clk 0:02:59]} 8. Qb3 {[%clk 0:03:02.8]}
8... e6 {[%clk 0:02:58.9]} 9. e3 {[%clk 0:03:03.4]} 9... Bd7 {[%clk 0:02:53.2]}
10. Be2 {[%clk 0:03:03.7]} 10... Na5 {[%clk 0:02:52.8]} 11. Qc2 {[%clk
0:03:03.6]} 11... Rc8 {[%clk 0:02:52.5]} 12. O-O {[%clk 0:03:04]} 12... b5
{[%clk 0:02:52.8]} 13. a3 {[%clk 0:03:04]} 13... Nc4 {[%clk 0:02:51.6]} 14. e4
{[%clk 0:03:03]} 14... dxe4 {[%clk 0:02:47.2]} 15. Qxe4 {[%clk 0:02:51.9]} 15...
Nxb2 {[%clk 0:02:31.6]} 16. Rac1 {[%clk 0:02:49.7]} 16... Nc4 {[%clk 0:02:28.2]}
17. d5 {[%clk 0:02:45.4]} 17... e5 {[%clk 0:02:26.5]} 18. a4 {[%clk 0:02:35.3]}
18... Nd6 {[%clk 0:02:26.1]} 19. Qe3 {[%clk 0:02:28.1]} 19... Bg7 {[%clk
0:02:09.9]} 20. axb5 {[%clk 0:02:21.7]} 20... axb5 {[%clk 0:02:10.8]} 21. Rb1
{[%clk 0:01:52]} 21... Qa5 {[%clk 0:01:58.7]} 22. Ne4 {[%clk 0:01:42.3]} 22...
Nxe4 {[%clk 0:01:57.8]} 23. Qxe4 {[%clk 0:01:43.2]} 23... f5 {[%clk 0:01:41.9]}
24. Qh4 {[%clk 0:01:28]} 24... O-O {[%clk 0:01:35.2]} 25. Qe7 {[%clk 0:00:59.3]}
25... Qd8 {[%clk 0:01:33.1]} 26. Qxd8 {[%clk 0:00:48.6]} 26... Rfxd8 {[%clk
0:01:34]} 27. Bxb5 {[%clk 0:00:49]} 27... e4 {[%clk 0:01:33.4]} 28. Nh4 {[%clk
0:00:42.3]} 28... f4 {[%clk 0:01:20.1]} 29. Bxd7 {[%clk 0:00:35.1]} 29... Rxd7
{[%clk 0:01:18.6]} 30. Rfe1 {[%clk 0:00:32.4]} 30... Re8 {[%clk 0:01:14.7]} 31.
f3 {[%clk 0:00:05.9]} 31... e3 {[%clk 0:01:02.9]} 32. Rbd1 {[%clk 0:00:03.6]}
32... Bf6 {[%clk 0:00:57.2]} 33. Nf5 {[%clk 0:00:03.8]} 33... Re5 {[%clk
0:00:56.3]} 34. Nh6+ {[%clk 0:00:03.6]} 34... Kg7 {[%clk 0:00:56.7]} 35. Ng4
{[%clk 0:00:04.5]} 35... Rexd5 {[%clk 0:00:56.5]} 36. Rxd5 {[%clk 0:00:03.4]}
36... Rxd5 {[%clk 0:00:57.4]} 37. g3 {[%clk 0:00:03.9]} 37... Bc3 {[%clk
0:00:27.7]} 38. Re2 {[%clk 0:00:03.7]} 38... h5 {[%clk 0:00:26.8]} 39. gxf4
{[%clk 0:00:01.9]} 39... hxg4 {[%clk 0:00:26.1]} 40. fxg4 {[%clk 0:00:02.8]}
40... Rd2 {[%clk 0:00:20.8]} 41. Kf1 {[%clk 0:00:01.5]} 41... Rd1+ {[%clk
0:00:20.9]} 42. Kg2 {[%clk 0:00:01]} 42... Bd4 {[%clk 0:00:21.6]} 43. Kf3 {[%clk
0:00:01.3]} 43... Kf6 {[%clk 0:00:10.8]} 44. f5 {[%clk 0:00:01.9]} 44... Ke5
{[%clk 0:00:10.3]} 45. h4 {[%clk 0:00:02.1]} 45... Rf1+ {[%clk 0:00:08.1]} 46.
Kg3 {[%clk 0:00:02.7]} 46... Rf2 {[%clk 0:00:07.3]} 47. Re1 {[%clk 0:00:02.9]}
47... Ke4 {[%clk 0:00:04.9]} 48. h5 {[%clk 0:00:03.5]} 48... Rf3+ {[%clk
0:00:04.9]} 49. Kh4 {[%clk 0:00:04.2]} 49... Bf6+ {[%clk 0:00:03.7]} 50. g5
{[%clk 0:00:04.8]} 50... Rf4+ {[%clk 0:00:04.3]} 51. Kg3 {[%clk 0:00:05.6]}
51... Bxg5 {[%clk 0:00:05.2]} 52. h6 {[%clk 0:00:06.1]} 52... Bxh6 {[%clk
0:00:05.6]} 53. Rh1 {[%clk 0:00:06.4]} 53... Bg5 {[%clk 0:00:05.5]} 54. Rh5
{[%clk 0:00:06.8]} 54... Rxf5 {[%clk 0:00:05.6]} 55. Rh8 {[%clk 0:00:07.7]}
55... e2 {[%clk 0:00:05.1]} 56. Re8+ {[%clk 0:00:08.2]} 56... Re5 {[%clk
0:00:05.6]} 57. Rxe5+ {[%clk 0:00:07.6]} 57... Kxe5 {[%clk 0:00:06.5]} 58. Kf2
{[%clk 0:00:08.4]} 58... Kf5 {[%clk 0:00:07.2]} 59. Kxe2 {[%clk 0:00:09]} 59...
Bf6 {[%clk 0:00:08.1]} 60. Kf3 {[%clk 0:00:09.7]} 60... Be7 {[%clk 0:00:09]} 61.
Kg3 {[%clk 0:00:10.4]} 61... f6 {[%clk 0:00:09.9]} 62. Kf3 {[%clk 0:00:11.3]}
62... Bf8 {[%clk 0:00:10.8]} 63. Kg3 {[%clk 0:00:12.1]} 63... Bg7 {[%clk
0:00:11.7]} 64. Kf3 {[%clk 0:00:13]} 64... Bh8 {[%clk 0:00:12.6]} 65. Kg3 {[%clk
0:00:13.9]} 65... Kg5 {[%clk 0:00:13.5]} 66. Kf3 {[%clk 0:00:14.8]} 66... f5
{[%clk 0:00:14.4]} 67. Kg2 {[%clk 0:00:15.7]} 67... Bg7 {[%clk 0:00:15.1]} 68.
Kf3 {[%clk 0:00:16.6]} 68... Bf8 {[%clk 0:00:16]} 69. Kg2 {[%clk 0:00:17.2]}
69... Be7 {[%clk 0:00:16.9]} 70. Kf3 {[%clk 0:00:18.1]} 70... Bd8 {[%clk
0:00:17.8]} 71. Kg2 {[%clk 0:00:18.9]} 71... Bc7 {[%clk 0:00:18.7]} 72. Kf3
{[%clk 0:00:19.8]} 72... f4 {[%clk 0:00:17.1]} 73. Kg2 {[%clk 0:00:20.7]} 73...
Kg4 {[%clk 0:00:17.3]} 74. Kf2 {[%clk 0:00:20.6]} 74... f3 {[%clk 0:00:17.8]}
75. Kf1 {[%clk 0:00:21]} 75... Kg3 {[%clk 0:00:18.2]} 76. Kg1 {[%clk 0:00:21.5]}
76... Bd8 {[%clk 0:00:18.8]} 77. Kf1 {[%clk 0:00:22.4]} 77... f2 {[%clk
0:00:19.3]} 78. Ke2 {[%clk 0:00:22.7]} 78... Kg2 {[%clk 0:00:19.9]} 0-1

[Event "Late-Titled-Tuesday-Blitz-November-28-2023"]
[Site "Chess.com"]
[Date "2023.11.28"]
[Round "8"]
[White "CSB7"]
[Black "Rakitic2010"]
[Result "0-1"]
[WhiteElo "2685"]
[BlackElo "2496"]
[TimeControl "180+1"]
[EndTime "15:26:45 PST"]
[Termination "Rakitic2010 won by resignation"]

1. e4 {[%clk 0:03:00.9]} 1... Nf6 {[%clk 0:02:56.3]} 2. e5 {[%clk 0:02:54.5]}
2... Nd5 {[%clk 0:02:56]} 3. d4 {[%clk 0:02:51.5]} 3... d6 {[%clk 0:02:56.3]} 4.
Nf3 {[%clk 0:02:51.6]} 4... g6 {[%clk 0:02:56.2]} 5. Bc4 {[%clk 0:02:46.4]} 5...
Nb6 {[%clk 0:02:55.9]} 6. Bb3 {[%clk 0:02:46.1]} 6... Bg7 {[%clk 0:02:56]} 7.
Qe2 {[%clk 0:02:36.9]} 7... O-O {[%clk 0:02:55.2]} 8. h3 {[%clk 0:02:32.8]} 8...
c5 {[%clk 0:02:55.2]} 9. dxc5 {[%clk 0:02:30.7]} 9... dxc5 {[%clk 0:02:56.1]}
10. O-O {[%clk 0:02:27.5]} 10... Qc7 {[%clk 0:02:56.2]} 11. Na3 {[%clk
0:02:17.9]} 11... a6 {[%clk 0:02:47.1]} 12. e6 {[%clk 0:02:02.3]} 12... Bxe6
{[%clk 0:02:22.9]} 13. Bxe6 {[%clk 0:02:03.2]} 13... fxe6 {[%clk 0:02:23.3]} 14.
Qxe6+ {[%clk 0:02:03]} 14... Kh8 {[%clk 0:02:23.7]} 15. Ng5 {[%clk 0:01:32.4]}
15... h6 {[%clk 0:02:22.1]} 16. Ne4 {[%clk 0:00:54.7]} 16... Kh7 {[%clk
0:02:12.5]} 17. c3 {[%clk 0:00:52.8]} 17... Nc6 {[%clk 0:02:07]} 18. Nxc5 {[%clk
0:00:46.7]} 18... Ne5 {[%clk 0:01:57.2]} 19. Ne4 {[%clk 0:00:46.8]} 19... Rad8
{[%clk 0:01:42.8]} 20. Be3 {[%clk 0:00:40]} 20... Nd5 {[%clk 0:01:42.9]} 21.
Rae1 {[%clk 0:00:33.9]} 21... b5 {[%clk 0:01:15.7]} 22. Qxa6 {[%clk 0:00:28.7]}
22... Qd7 {[%clk 0:01:03]} 23. Qxb5 {[%clk 0:00:23.5]} 23... Qf5 {[%clk
0:01:02.4]} 24. Ng3 {[%clk 0:00:22.7]} 24... Qc8 {[%clk 0:00:54.2]} 25. Kh2
{[%clk 0:00:15.5]} 25... h5 {[%clk 0:00:53.5]} 26. Qe2 {[%clk 0:00:13.4]} 26...
h4 {[%clk 0:00:51.6]} 27. Ne4 {[%clk 0:00:13.9]} 27... Qc7 {[%clk 0:00:46.6]}
28. Kh1 {[%clk 0:00:14]} 28... Qc6 {[%clk 0:00:45.4]} 29. Nc2 {[%clk 0:00:09.1]}
29... Rf5 {[%clk 0:00:36.9]} 30. Nd4 {[%clk 0:00:08]} 30... Qd7 {[%clk
0:00:33.4]} 31. Nxf5 {[%clk 0:00:07.6]} 31... Qxf5 {[%clk 0:00:34.3]} 32. Bd4
{[%clk 0:00:05.6]} 32... Nf4 {[%clk 0:00:34]} 33. Qe3 {[%clk 0:00:06.3]} 33...
Nc4 {[%clk 0:00:30.2]} 34. Ng5+ {[%clk 0:00:05]} 34... Qxg5 {[%clk 0:00:28.1]}
35. Qf3 {[%clk 0:00:03]} 35... Nd2 {[%clk 0:00:27.2]} 36. Qg4 {[%clk 0:00:02.1]}
36... Qxg4 {[%clk 0:00:25.7]} 37. hxg4 {[%clk 0:00:03]} 37... Nxf1 {[%clk
0:00:26]} 38. Bxg7 {[%clk 0:00:03.1]} 38... Kxg7 {[%clk 0:00:24.1]} 39. Rxf1
{[%clk 0:00:03.6]} 39... Rd2 {[%clk 0:00:24.2]} 40. g3 {[%clk 0:00:04.2]} 40...
hxg3 {[%clk 0:00:19.7]} 41. fxg3 {[%clk 0:00:05.1]} 41... Ne2 {[%clk 0:00:20.1]}
42. Kg2 {[%clk 0:00:04.2]} 42... Nxc3+ {[%clk 0:00:19.4]} 43. Kh3 {[%clk
0:00:04.1]} 43... Nxa2 {[%clk 0:00:18.9]} 44. Re1 {[%clk 0:00:04.6]} 44... Kf7
{[%clk 0:00:16.7]} 45. b4 {[%clk 0:00:05]} 45... Nxb4 {[%clk 0:00:16.1]} 46.
Rf1+ {[%clk 0:00:05.2]} 46... Kg7 {[%clk 0:00:16.7]} 47. Re1 {[%clk 0:00:05.8]}
47... Nd5 {[%clk 0:00:17.3]} 48. Re5 {[%clk 0:00:05]} 48... Kf6 {[%clk
0:00:16.3]} 49. Re1 {[%clk 0:00:04.8]} 49... Rd3 {[%clk 0:00:15.8]} 50. Kh4
{[%clk 0:00:04.7]} 50... Re3 {[%clk 0:00:11.9]} 51. Rf1+ {[%clk 0:00:02.9]}
51... Kg7 {[%clk 0:00:12.4]} 52. g5 {[%clk 0:00:03.5]} 52... Nc3 {[%clk
0:00:11]} 53. g4 {[%clk 0:00:03.6]} 53... Re4 {[%clk 0:00:10.6]} 54. Rc1 {[%clk
0:00:02.9]} 54... Nd5 {[%clk 0:00:10.9]} 55. Kg3 {[%clk 0:00:02.1]} 55... Re5
{[%clk 0:00:09.2]} 56. Kh4 {[%clk 0:00:02.3]} 56... Nf4 {[%clk 0:00:09.3]} 57.
Rf1 {[%clk 0:00:02.3]} 57... Ne6 {[%clk 0:00:09.5]} 58. Ra1 {[%clk 0:00:01.5]}
58... Nxg5 {[%clk 0:00:09.7]} 59. Ra7 {[%clk 0:00:02.4]} 59... Nf7 {[%clk
0:00:09.8]} 60. Kg3 {[%clk 0:00:02.5]} 60... g5 {[%clk 0:00:09.6]} 61. Kf3
{[%clk 0:00:02.8]} 61... Kf6 {[%clk 0:00:10.1]} 62. Kg3 {[%clk 0:00:03.1]} 62...
Nd6 {[%clk 0:00:10.7]} 63. Ra6 {[%clk 0:00:03.5]} 63... Re3+ {[%clk 0:00:10.5]}
64. Kf2 {[%clk 0:00:04]} 64... Re4 {[%clk 0:00:11.2]} 65. Kf3 {[%clk 0:00:04.1]}
65... Rf4+ {[%clk 0:00:11.3]} 66. Kg3 {[%clk 0:00:04.7]} 66... Ke6 {[%clk
0:00:10.7]} 67. Ra5 {[%clk 0:00:04.6]} 67... Ne4+ {[%clk 0:00:10.7]} 68. Kh3
{[%clk 0:00:03.2]} 68... Rf3+ {[%clk 0:00:11.1]} 69. Kh2 {[%clk 0:00:03.1]}
69... Kf6 {[%clk 0:00:10.6]} 70. Rb5 {[%clk 0:00:03.2]} 70... Rg3 {[%clk
0:00:08.4]} 71. Rb6+ {[%clk 0:00:03.5]} 71... e6 {[%clk 0:00:08.5]} 72. Rb8
{[%clk 0:00:02.9]} 72... Rxg4 {[%clk 0:00:08.7]} 73. Rb5 {[%clk 0:00:03.6]}
73... Rf4 {[%clk 0:00:08.6]} 74. Kg2 {[%clk 0:00:03.8]} 74... Rf5 {[%clk
0:00:09.1]} 75. Rb2 {[%clk 0:00:03.8]} 75... Rf2+ {[%clk 0:00:08.8]} 76. Rxf2+
{[%clk 0:00:03]} 76... Nxf2 {[%clk 0:00:09.7]} 77. Kxf2 {[%clk 0:00:03.9]} 77...
Kf5 {[%clk 0:00:10.4]} 0-1

[Event "Late-Titled-Tuesday-Blitz-November-28-2023"]
[Site "Chess.com"]
[Date "2023.11.28"]
[Round "8"]
[White "The_Straightforward_Rook"]
[Black "serena-maria"]
[Result "1-0"]
[WhiteElo "2461"]
[BlackElo "2324"]
[TimeControl "180+1"]
[EndTime "15:26:58 PST"]
[Termination "The_Straightforward_Rook won on time"]

1. Nf3 {[%clk 0:02:54.4]} 1... Nf6 {[%clk 0:02:59.8]} 2. c4 {[%clk 0:02:53.8]}
2... g6 {[%clk 0:03:00.4]} 3. d4 {[%clk 0:02:51.6]} 3... Bg7 {[%clk 0:03:00.9]}
4. e3 {[%clk 0:02:51.8]} 4... O-O {[%clk 0:03:01.4]} 5. Be2 {[%clk 0:02:52.5]}
5... d6 {[%clk 0:03:01.9]} 6. Nc3 {[%clk 0:02:53.2]} 6... Nc6 {[%clk 0:03:02.3]}
7. O-O {[%clk 0:02:52.5]} 7... e5 {[%clk 0:03:02.9]} 8. b3 {[%clk 0:02:33.3]}
8... Nd7 {[%clk 0:03:00.2]} 9. Bb2 {[%clk 0:02:31.1]} 9... Ne7 {[%clk
0:03:00.6]} 10. Qc2 {[%clk 0:02:28.7]} 10... f5 {[%clk 0:03:01]} 11. dxe5 {[%clk
0:02:21.2]} 11... dxe5 {[%clk 0:03:00.5]} 12. Rfd1 {[%clk 0:02:21.8]} 12... c6
{[%clk 0:02:59.9]} 13. Ng5 {[%clk 0:02:12.9]} 13... Rf6 {[%clk 0:02:45.1]} 14.
c5 {[%clk 0:02:11]} 14... Qc7 {[%clk 0:02:41.8]} 15. Bc4+ {[%clk 0:02:09.1]}
15... Kh8 {[%clk 0:02:40.2]} 16. Nf7+ {[%clk 0:02:07.1]} 16... Rxf7 {[%clk
0:02:32.5]} 17. Bxf7 {[%clk 0:02:08]} 17... Nxc5 {[%clk 0:02:24.3]} 18. b4
{[%clk 0:02:02]} 18... Nd7 {[%clk 0:02:21.3]} 19. Rd2 {[%clk 0:01:49.5]} 19...
a6 {[%clk 0:01:55.9]} 20. Rad1 {[%clk 0:01:48.6]} 20... h6 {[%clk 0:01:52.7]}
21. Na4 {[%clk 0:01:35.5]} 21... Kh7 {[%clk 0:01:50.6]} 22. Be6 {[%clk
0:01:27.3]} 22... Nf6 {[%clk 0:01:44.1]} 23. Bxc8 {[%clk 0:01:25.3]} 23... Rxc8
{[%clk 0:01:43.4]} 24. Nc5 {[%clk 0:01:25.8]} 24... Ned5 {[%clk 0:01:38.5]} 25.
Ne6 {[%clk 0:01:19.7]} 25... Qb8 {[%clk 0:01:36.1]} 26. Nxg7 {[%clk 0:01:19.4]}
26... Kxg7 {[%clk 0:01:35.5]} 27. Qc5 {[%clk 0:01:11.3]} 27... b6 {[%clk
0:01:31.1]} 28. Qc4 {[%clk 0:01:09.7]} 28... Ne4 {[%clk 0:01:18.4]} 29. Rc2
{[%clk 0:01:05.5]} 29... b5 {[%clk 0:01:13.2]} 30. Qb3 {[%clk 0:01:01.9]} 30...
Kh7 {[%clk 0:00:55]} 31. a3 {[%clk 0:00:53.6]} 31... f4 {[%clk 0:00:42.9]} 32.
Qd3 {[%clk 0:00:37.6]} 32... Nef6 {[%clk 0:00:40.9]} 33. e4 {[%clk 0:00:35.9]}
33... Nb6 {[%clk 0:00:30.2]} 34. f3 {[%clk 0:00:24.4]} 34... Nc4 {[%clk
0:00:26.9]} 35. Rxc4 {[%clk 0:00:23.7]} 35... bxc4 {[%clk 0:00:26.6]} 36. Qxc4
{[%clk 0:00:24.6]} 36... Qb6+ {[%clk 0:00:23.4]} 37. Qc5 {[%clk 0:00:20.8]}
37... Qxc5+ {[%clk 0:00:18.1]} 38. bxc5 {[%clk 0:00:21.7]} 38... Re8 {[%clk
0:00:17.4]} 39. Rd6 {[%clk 0:00:20.6]} 39... Kg7 {[%clk 0:00:17.3]} 40. Kf2
{[%clk 0:00:20.3]} 40... Kf7 {[%clk 0:00:16.5]} 41. Rxc6 {[%clk 0:00:20.4]}
41... Nd7 {[%clk 0:00:16.4]} 42. Bc3 {[%clk 0:00:15.9]} 42... Rb8 {[%clk
0:00:15]} 43. Rxa6 {[%clk 0:00:13]} 43... Nxc5 {[%clk 0:00:14.4]} 44. Ra7+
{[%clk 0:00:13.3]} 44... Kf6 {[%clk 0:00:13.3]} 45. Rc7 {[%clk 0:00:12.3]} 45...
Ne6 {[%clk 0:00:12.6]} 46. Rc6 {[%clk 0:00:11.5]} 46... Rb3 {[%clk 0:00:12.4]}
47. a4 {[%clk 0:00:09]} 47... Ra3 {[%clk 0:00:12.1]} 48. h4 {[%clk 0:00:08.9]}
48... Rxa4 {[%clk 0:00:11.6]} 49. Rb6 {[%clk 0:00:07.5]} 49... Ra2+ {[%clk
0:00:11.4]} 50. Kg1 {[%clk 0:00:07]} 50... Rc2 {[%clk 0:00:10.7]} 51. Bb2 {[%clk
0:00:05.4]} 51... Rc4 {[%clk 0:00:09.8]} 52. Rb5 {[%clk 0:00:05.3]} 52... Nd4
{[%clk 0:00:08.2]} 53. Bxd4 {[%clk 0:00:05.5]} 53... Rxd4 {[%clk 0:00:08.4]} 54.
Rb6+ {[%clk 0:00:05.7]} 54... Kf7 {[%clk 0:00:08.2]} 55. Kh2 {[%clk 0:00:06.6]}
55... Rd2 {[%clk 0:00:07.8]} 56. Kh3 {[%clk 0:00:07]} 56... Kg7 {[%clk
0:00:07.6]} 57. Rc6 {[%clk 0:00:06.9]} 57... Kf7 {[%clk 0:00:07.5]} 58. Rb6
{[%clk 0:00:07.1]} 58... Kg7 {[%clk 0:00:07.9]} 59. Re6 {[%clk 0:00:07.8]} 59...
Ra2 {[%clk 0:00:06.6]} 60. Rxe5 {[%clk 0:00:08.3]} 60... Kf6 {[%clk 0:00:07.1]}
61. Rd5 {[%clk 0:00:08.7]} 61... Re2 {[%clk 0:00:07.1]} 62. Rd6+ {[%clk
0:00:09]} 62... Kf7 {[%clk 0:00:07.4]} 63. Rc6 {[%clk 0:00:09.5]} 63... Re3
{[%clk 0:00:07]} 64. Ra6 {[%clk 0:00:08.7]} 64... g5 {[%clk 0:00:06.2]} 65. hxg5
{[%clk 0:00:08.7]} 65... hxg5 {[%clk 0:00:07.1]} 66. Kg4 {[%clk 0:00:08.8]}
66... Re2 {[%clk 0:00:07.3]} 67. Kxg5 {[%clk 0:00:09.3]} 67... Rxg2+ {[%clk
0:00:07.6]} 68. Kxf4 {[%clk 0:00:09.9]} 68... Rh2 {[%clk 0:00:06.6]} 69. Ke5
{[%clk 0:00:09.8]} 69... Rh5+ {[%clk 0:00:06.5]} 70. Kd4 {[%clk 0:00:10.3]}
70... Rh3 {[%clk 0:00:06]} 71. f4 {[%clk 0:00:10.2]} 71... Rh1 {[%clk
0:00:04.8]} 72. Ke5 {[%clk 0:00:09.9]} 72... Rh5+ {[%clk 0:00:04.4]} 73. f5
{[%clk 0:00:10.3]} 73... Rh4 {[%clk 0:00:02.8]} 74. Ra7+ {[%clk 0:00:10.7]}
74... Kf8 {[%clk 0:00:02.9]} 75. Kf6 {[%clk 0:00:10.2]} 75... Kg8 {[%clk
0:00:03]} 76. e5 {[%clk 0:00:09.8]} 76... Rh6+ {[%clk 0:00:02.7]} 77. Kg5 {[%clk
0:00:10.2]} 77... Rb6 {[%clk 0:00:02.4]} 78. e6 {[%clk 0:00:10.4]} 78... Rb1
{[%clk 0:00:01.4]} 79. Kf6 {[%clk 0:00:10.4]} 1-0